fUSD/lending_fUSD_20251211
["ID","MTS","AMOUNT","RATE_DAILY","PERIOD"]
[398268826,1765486232965,-150.09591702,0.00018456,2]
[398268827,1765486232975,-449.44,0.00018517,2]
[398268828,1765486232986,-1050.24164055,0.00018588,2]
[398268829,1765486232996,-501.32368526,0.000188,2]
[398268830,1765486233009,-500.0,0.000188,2]
[398268831,1765486233019,-500.0,0.000188,2]
[398268832,1765486233029,-556.87569377,0.000188,2]
[398268833,1765486233039,-500.0,0.000188,2]
[398268834,1765486233051,-500.0,0.000188,2]
[398268835,1765486233066,-502.09208963,0.000188,2]
[398268836,1765486233075,-498.02,0.00018831,2]
[398268837,1765486233088,-200.0,0.00019003,2]
[398268838,1765486233098,-1000.0,0.00019003,2]
[398268839,1765486233109,-168.04,0.00019003,2]
[398268840,1765486233119,-309.15,0.00019003,2]
[398268841,1765486233130,-195.0,0.00019053,2]
[398268842,1765486233140,-166.67,0.00019139,2]
[398268843,1765486233151,-1237.08,0.00019196,2]
[398268844,1765486233163,-419.43,0.00019314,2]
[398268845,1765486233174,-717.34,0.000194,2]
[398268846,1765486233184,-250.0,0.00019414,2]
[398268847,1765486233194,-200.0,0.00019485,2]
[398268848,1765486233204,-166.66,0.00019491,2]
[398268849,1765486233214,-1098.0,0.00019566,2]
[398268850,1765486233225,-1152.92769222,0.00019616,2]
[398268851,1765486233237,-1288.12252,0.00019616,2]
[398268852,1765486233249,-948.12354184,0.00019616,2]
[398268853,1765486233264,-151.0,0.00019658,2]
[398268854,1765486233274,-139.80930562,0.00019661,2]
[398268855,1765486233290,-9093.89955739,0.00019661,2]
[398268856,1765486233302,-1268.999991,0.00019661,2]
[398268857,1765486233313,-480.71,0.00019661,2]
[398268858,1765486233325,-964.74,0.00019661,2]
[398268859,1765486233340,-1060.77904205,0.00019661,2]
[398268861,1765486237760,-6743.57284492,0.00019661,2]
[398268862,1765486237773,-8844.41387332,0.00019661,2]
[398268863,1765486237783,-1000.0,0.00019716,2]
[398268864,1765486237793,-150.09591702,0.00019774,2]
[398268865,1765486237803,-500.0,0.00019778,2]
[398268866,1765486237814,-3449.0,0.00019779,2]
[398268867,1765486237825,-1606.0,0.00019779,2]
[398268868,1765486237835,-611.0,0.00019779,2]
[398268869,1765486237845,-1260.0,0.00019779,2]
[398268870,1765486237856,-684.0,0.00019779,2]
[398268871,1765486237865,-1196.0,0.00019779,2]
[398268872,1765486237875,-910.0,0.00019779,2]
[398268873,1765486237885,-253.0,0.00019779,2]
[398268874,1765486237895,-12.614148,0.00019779,2]
[398268875,1765486237910,-548.17893275,0.00019779,2]
[398268876,1765486237921,-2.20691925,0.00019779,2]
[398268877,1765486237937,-1661.4773927,0.00019779,2]
[398268878,1765486237967,-3102.5226073,0.00019779,2]
[398268879,1765486237978,-90.3773927,0.00019902,2]
[398268880,1765486237992,-76.2826073,0.00019902,2]
[398268881,1765486238007,-480.8162296,0.00019925,2]
[398268882,1765486238019,-2500.0,0.00020147,2]
[398268883,1765486238029,-722.06,0.00020187,2]
[398268885,1765486238039,-23722.66,0.00020247,2]
[398268886,1765486238051,-166.66,0.00020312,2]
[398268887,1765486238061,-719.3533188,0.00020413,2]
[398268888,1765486238071,-1000.0,0.00020428,2]
[398268889,1765486238082,-410.07701701,0.00020596,2]
[398268891,1765486238094,-510.0107198,0.00020596,2]
[398268922,1765486239814,-177.91226319,0.00020596,2]
[398268923,1765486239824,-394.88132725,0.00020654,2]
[398268924,1765486239835,-605.11867275,0.00020654,2]
[398268925,1765486239845,-166.66,0.00020723,2]
[398268926,1765486239855,-1703.32755777,0.00020739,2]
[398268927,1765486239867,-1047.67244223,0.00020739,2]
[398268928,1765486239877,-150.09591702,0.00021092,2]
[398268929,1765486239886,-166.66,0.00021133,2]
[398268930,1765486239897,-1000.0,0.00021141,2]
[398268931,1765486239906,-1752.69660614,0.00021245,2]
[398268932,1765486239918,-2615.98241607,0.00021245,2]
[398268933,1765486239934,-21575.73097779,0.00021245,2]
[398268934,1765486239945,-166.66,0.00021543,2]
[398268935,1765486239955,-28596.9246143,0.00021563,2]
[398268936,1765486239965,-1098.0,0.0002168,2]
[398268937,1765486239975,-419.43,0.00021728,2]
[398268938,1765486239985,-1000.0,0.00021854,2]
[398268939,1765486239995,-5000.0,0.00021918,2]
[398268940,1765486240010,-500.0,0.00021918,2]
[398268941,1765486240021,-240.76811485,0.00021981,2]
[398268942,1765486240033,-274.269,0.00021981,2]
[398268943,1765486240046,-2874.1366392,0.00021981,2]
[398268944,1765486240056,-500.0,0.00022055,2]
[398268945,1765486240066,-500.0,0.00022192,2]
[398268946,1765486240078,-166.67,0.00022298,2]
[398268947,1765486240088,-500.0,0.00022329,2]
[398268948,1765486240098,-150.09591702,0.00022411,2]
[398268949,1765486240107,-124.64744378,0.00022466,2]
[398268950,1765486240119,-375.35255622,0.00022466,2]
[398268951,1765486240129,-500.0,0.00022603,2]
[398268952,1765486240139,-500.0,0.00022641,2]
[398268953,1765486240149,-500.0,0.0002274,2]
[398268954,1765486240159,-151.0,0.00022776,7]
[398268955,1765486240169,-217.87659422,0.00022779,2]
[398268956,1765486240181,-1726.20261433,0.00022779,2]
[398268957,1765486240192,-508.87220089,0.00022779,2]
[398268958,1765486240205,-996.04859056,0.00022779,2]
[398268959,1765486240215,-2.95140944,0.00022779,2]
[398268960,1765486240226,-776.90309751,0.00022779,2]
[398268961,1765486240239,-826.14549305,0.00022779,2]
[398268962,1765486240248,-611.0,0.00022779,2]
[398268963,1765486240258,-1260.0,0.00022779,2]
[398268964,1765486240268,-684.0,0.00022779,2]
[398268965,1765486240278,-1196.0,0.00022779,2]
[398268966,1765486240288,-910.0,0.00022779,2]
[398268967,1765486240298,-253.0,0.00022779,2]
[398268968,1765486240308,-562.0,0.00022779,2]
[398268969,1765486240317,-4764.0,0.00022779,2]
[398268970,1765486240327,-1098.0,0.00022821,2]
[398268971,1765486240337,-215.88468216,0.00022877,2]
[398268972,1765486240346,-250.0,0.00022887,2]
[398268973,1765486240356,-1000.0,0.00022949,2]
[398268974,1765486240366,-719.3533188,0.00023067,2]
[398268975,1765486240376,-28596.9246143,0.00023465,2]
[398268976,1765486240386,-150.09591702,0.00023729,2]
[398268977,1765486240396,-1026.34,0.00023836,5]
[398268978,1765486240407,-151.80375574,0.00023873,2]
[398268979,1765486240417,-1000.0,0.00023873,2]
[398268980,1765486240427,-1000.0,0.00023873,2]
[398268981,1765486240438,-300.0,0.00023873,2]
[398268982,1765486240448,-1000.0,0.00023873,2]
[398268983,1765486240458,-1000.0,0.00023873,2]
[398268984,1765486240469,-170.249,0.00023874,5]
[398268985,1765486240479,-273.13000904,0.00024,2]
[398268986,1765486240489,-1098.0,0.00024022,2]
[398268987,1765486240499,-419.43,0.00024143,2]
[398268988,1765486240510,-150.99,0.00024174,2]
[398268989,1765486240521,-3026.2241219,0.00024304,2]
[398268990,1765486240531,-3389.17375405,0.00024346,2]
[398268991,1765486240542,-1000.0,0.00024658,30]
[398268992,1765486240552,-62007.6391822,0.000248,2]
[398268993,1765486240563,-168.0,0.00024822,2]
[398268994,1765486240573,-3263.55995696,0.00024879,2]
[398268995,1765486240583,-6527.11991392,0.00024884,2]
[398268996,1765486240593,-500.0,0.00024894,9]
[398268997,1765486240603,-500.0,0.00024894,9]
[398268998,1765486240612,-315.77550123,0.00024894,9]
[398268999,1765486240622,-500.0,0.00024894,9]
[398269000,1765486240632,-500.0,0.00024894,9]
[398269001,1765486240642,-500.0,0.00024894,9]
[398269002,1765486240654,-500.0,0.00024894,9]
[398269003,1765486240664,-500.0,0.00024894,9]
[398269004,1765486240674,-500.0,0.00024894,9]
[398269005,1765486240684,-500.0,0.00024894,9]
[398269006,1765486240694,-500.0,0.00024894,9]
[398269007,1765486240704,-500.0,0.00024894,9]
[398269008,1765486240714,-500.0,0.00024894,9]
[398269009,1765486240724,-500.0,0.00024899,2]
[398269010,1765486240734,-168.0,0.00024913,2]
[398269011,1765486240744,-150.09591702,0.00025047,2]
[398269012,1765486240754,-168.0,0.00025055,2]
[398269013,1765486240764,-168.0,0.00025214,2]
[398269014,1765486240774,-1248.0,0.00025243,2]
[398269015,1765486240784,-1000.0,0.00025244,2]
[398269016,1765486240794,-3263.55995696,0.00025266,2]
[398269017,1765486240804,-3263.55995696,0.00025277,2]
[398269018,1765486240814,-1098.0,0.00025287,2]
[398269019,1765486240824,-552.86,0.00025479,2]
[398269020,1765486240834,-552.86,0.00025479,2]
[398269021,1765486240843,-552.86,0.00025479,2]
[398269022,1765486240853,-300.0,0.00025479,2]
[398269023,1765486240863,-3263.55995696,0.00025602,2]
[398269024,1765486240873,-500.0,0.00025684,2]
[398269025,1765486240883,-151.0,0.0002575,7]
[398269026,1765486240892,-480.43,0.00025753,2]
[398269027,1765486240902,-3263.55995696,0.00025769,2]
[398269028,1765486240912,-611.0,0.00025779,2]
[398269029,1765486240922,-1260.0,0.00025779,2]
[398269030,1765486240932,-684.0,0.00025779,2]
[398269031,1765486240941,-910.0,0.00025779,2]
[398269032,1765486240951,-253.0,0.00025779,2]
[398269033,1765486240961,-3263.55995696,0.00025813,2]
[398269034,1765486240971,-150.0,0.0002623,2]
[398269035,1765486240981,-3263.55995696,0.00026291,2]
[398269036,1765486240990,-842.92,0.00026301,2]
[398269037,1765486241001,-552.86,0.00026301,2]
[398269038,1765486241013,-552.86,0.00026301,2]
[398269039,1765486241022,-552.86,0.00026301,2]
[398269040,1765486241031,-552.86,0.00026301,2]
[398269041,1765486241042,-551.87,0.00026301,2]
[398269042,1765486241052,-150.09591702,0.00026365,2]
[398269043,1765486241062,-3263.55995696,0.0002649,2]
[398269044,1765486241072,-419.43,0.00026557,120]
[398269045,1765486241083,-3263.55995696,0.00026608,2]
[398269046,1765486241093,-1098.0,0.00026618,2]
[398269047,1765486241103,-722.06,0.00026676,2]
[398269048,1765486241113,-3263.55995696,0.00026691,2]
[398269049,1765486241123,-3389.17375405,0.00026711,2]
[398269050,1765486241132,-151.0,0.00026711,7]
[398269051,1765486241142,-151.0,0.00026711,7]
[398269052,1765486241152,-151.0,0.00026711,7]
[398269053,1765486241163,-162.102729,0.00026711,7]
[398269054,1765486241172,-151.0,0.00026711,7]
[398269055,1765486241182,-150.0,0.00026849,2]
[398269056,1765486241192,-631.5,0.00026986,120]
[398269057,1765486241202,-3263.55995696,0.00027103,2]
[398269058,1765486241212,-3263.55995696,0.00027113,2]
[398269059,1765486241222,-552.86,0.00027123,2]
[398269060,1765486241232,-552.86,0.00027123,2]
[398269061,1765486241242,-500.0,0.00027397,14]
[398269062,1765486241251,-151.0,0.00027397,7]
[398269063,1765486241261,-314.54,0.00027397,2]
[398269064,1765486241271,-1000.64646172,0.00027397,2]
[398269065,1765486241281,-1000.0,0.00027538,2]
[398269066,1765486241291,-150.09591703,0.00027684,2]
[398269067,1765486241301,-171.597329,0.00027925,7]
[398269068,1765486241311,-171.597329,0.00027925,7]
[398269069,1765486241321,-171.597329,0.00027925,7]
[398269070,1765486241332,-3263.55995696,0.00027925,2]
[398269071,1765486241342,-3263.55995696,0.0002799,2]
[398269072,1765486241352,-3263.55995696,0.00027998,2]
[398269073,1765486241361,-3006.90863046,0.00028,3]
[398269074,1765486241371,-1098.0,0.00028018,5]
[398269075,1765486241381,-3263.55995696,0.00028164,2]
[398269076,1765486241391,-6527.11991392,0.00028174,2]
[398269077,1765486241402,-6413.76,0.00028184,2]
[398269078,1765486241412,-6527.11991392,0.00028193,2]
[398269079,1765486241421,-1439.0,0.000282,2]
[398269080,1765486241431,-2268.57,0.00028203,2]
[398269081,1765486241441,-2072.87,0.00028203,2]
[398269082,1765486241451,-3263.55995696,0.0002829,2]
[398269083,1765486241461,-3263.55995696,0.00028433,2]
[398269084,1765486241471,-151.0,0.00028443,7]
[398269085,1765486241481,-151.0,0.00028443,7]
[398269086,1765486241492,-151.0,0.00028443,7]
[398269087,1765486241503,-151.0,0.00028443,7]
[398269088,1765486241513,-151.0,0.00028443,7]
[398269089,1765486241523,-345.260467,0.00028443,7]
[398269090,1765486241532,-345.260467,0.00028443,7]
[398269091,1765486241542,-345.260467,0.00028443,7]
[398269092,1765486241552,-345.260467,0.00028443,7]
[398269093,1765486241562,-567.12747705,0.00028453,5]
[398269094,1765486241572,-168.04,0.00028505,2]
[398269095,1765486241582,-151.0,0.00028505,7]
[398269096,1765486241592,-154.512616,0.00028505,7]
[398269097,1765486241602,-151.0,0.00028505,7]
[398269098,1765486241612,-151.0,0.00028505,7]
[398269099,1765486241622,-200.0,0.00028537,2]
[398269100,1765486241632,-3263.55995696,0.0002862,2]
[398269101,1765486241642,-480.43,0.0002863,2]
[398269102,1765486241653,-480.43,0.0002863,2]
[398269103,1765486241663,-480.43,0.0002863,2]
[398269104,1765486241673,-480.43,0.0002863,2]
[398269105,1765486241683,-480.43,0.0002863,2]
[398269106,1765486241692,-707.58714725,0.0002863,2]
[398269107,1765486242211,-230.40285275,0.0002863,2]
[398269108,1765486242220,-500.0,0.00028726,2]
[398269109,1765486242230,-35.04248877,0.00028754,2]
[398269110,1765486242241,-2333.0,0.00028754,2]
[398269113,1765486243522,-485.74255521,0.00019779,2]
[398269114,1765486243538,-6032.25744479,0.00019779,2]
[398269115,1765486243548,-171.597329,0.00027925,7]
[398269116,1765486243558,-895.51746819,0.00028754,2]
[398269117,1765486243567,-1022.88390397,0.00028774,2]
[398269118,1765486244325,-316.16713008,0.00028774,2]
[398269119,1765486244337,-1068.90796884,0.00028774,2]
[398269123,1765486245827,-994.04945514,0.00025379,2]
[398269124,1765486245837,-6717.41099711,0.00028774,2]
[398269125,1765486245847,-151.0,0.00028774,7]
[398269126,1765486245856,-151.0,0.00028774,7]
[398269127,1765486245865,-253.0,0.00028779,2]
[398269128,1765486245875,-419.43,0.00028971,120]
[398269129,1765486245887,-300.0,0.00029041,2]
[398269130,1765486245899,-242.78191347,0.00029076,2]
[398269131,1765486245911,-311.95472696,0.00029076,2]
[398269132,1765486245923,-332.0921,0.00029076,2]
[398269133,1765486245938,-2502.34501362,0.00029076,2]
[398269134,1765486245947,-151.0,0.00029076,7]
[398269135,1765486245957,-151.0,0.00029076,7]
[398269136,1765486245967,-151.0,0.00029076,7]
[398269137,1765486245977,-151.0,0.00029076,7]
[398269138,1765486245987,-229.057414,0.00029076,2]
[398269139,1765486245997,-229.057414,0.00029076,2]
[398269140,1765486246008,-229.057414,0.00029076,2]
[398269141,1765486246018,-229.057414,0.00029076,2]
[398269142,1765486246027,-151.0,0.00029076,7]
[398269143,1765486246037,-222.67,0.00029271,2]
[398269144,1765486246047,-151.0,0.00029352,7]
[398269145,1765486246058,-151.0,0.00029352,7]
[398269146,1765486246068,-1098.0,0.00029419,5]
[398269147,1765486246078,-498.4,0.00029492,30]
[398269148,1765486246088,-10757.33846944,0.000295,7]
[398269149,1765486246098,-480.8162296,0.000295,7]
[398269150,1765486246108,-279.34,0.00029514,2]
[398269151,1765486246118,-194.13,0.00029652,2]
[398269152,1765486246128,-222.67,0.00029802,2]
[398269153,1765486246138,-351.37,0.00029813,2]
[398269154,1765486246148,-279.34,0.00029818,2]
[398269155,1765486246159,-457.0,0.0003,9]
[398269156,1765486246169,-1000.0,0.0003,9]
[398269157,1765486246179,-155.0,0.0003,14]
[398269158,1765486246189,-151.0,0.00030097,7]
[398269159,1765486246198,-463.81,0.00030411,2]
[398269160,1765486246207,-463.81,0.00030411,2]
[398269161,1765486246217,-898.12,0.00030411,2]
[398269162,1765486246227,-984.26,0.00030548,2]
[398269163,1765486246237,-1098.0,0.0003089,5]
[398269164,1765486246246,-3389.17375405,0.0003144,2]
[398269165,1765486246256,-10000.0,0.00031507,120]
[398269166,1765486246281,-480.8162296,0.000316,120]
[398269167,1765486246292,-155.0,0.00031644,14]
[398269168,1765486246302,-500.0,0.00031768,2]
[398269169,1765486246313,-253.0,0.00031779,2]
[398269170,1765486246323,-1098.0,0.00032435,5]
[398269171,1765486246334,-703.56,0.00032466,2]
[398269172,1765486246344,-703.56,0.00032466,2]
[398269173,1765486246354,-703.56,0.00032466,2]
[398269174,1765486246365,-703.56,0.00032466,2]
[398269175,1765486246375,-703.56,0.00032466,2]
[398269176,1765486246386,-1406.97,0.00032466,2]
[398269177,1765486246397,-703.56,0.00032466,2]
[398269178,1765486246407,-703.56,0.00032466,2]
[398269179,1765486246417,-703.56,0.00032466,2]
[398269180,1765486246427,-702.87,0.00032466,2]
[398269181,1765486246438,-703.56,0.00032466,2]
[398269182,1765486246449,-703.56,0.00032466,2]
[398269183,1765486246459,-703.56,0.00032466,2]
[398269184,1765486246470,-480.32,0.00032466,2]
[398269185,1765486246480,-151.0,0.00032466,31]
[398269186,1765486246491,-151.0,0.00032466,30]
[398269187,1765486246503,-151.0,0.00032466,30]
[398269188,1765486246514,-151.0,0.00032466,31]
[398269189,1765486246524,-151.0,0.00032466,31]
[398269190,1765486246535,-7826.51622397,0.00032877,2]
[398269191,1765486246545,-151.0,0.00032877,31]
[398269192,1765486246557,-151.0,0.00032877,31]
[398269193,1765486246567,-167.828977,0.00032877,7]
[398269194,1765486246578,-152.155104,0.00032877,31]
[398269195,1765486246588,-151.0,0.00032877,31]
[398269196,1765486246599,-156.464707,0.00032877,31]
[398269197,1765486246609,-151.0,0.00032877,31]
[398269198,1765486246619,-151.0,0.00032877,31]
[398269199,1765486246629,-151.0,0.00032877,31]
[398269200,1765486246640,-151.0,0.00032877,31]
[398269201,1765486246650,-155.382324,0.00032877,31]
[398269202,1765486246662,-151.0,0.00032877,31]
[398269203,1765486246672,-151.0,0.00032877,31]
[398269204,1765486246682,-153.503221,0.00032877,31]
[398269205,1765486246693,-151.0,0.00032877,31]
[398269206,1765486246704,-151.0,0.00032877,31]
[398269207,1765486246714,-151.0,0.00032877,31]
[398269208,1765486246725,-151.0,0.00032877,31]
[398269209,1765486246735,-151.0,0.00032877,31]
[398269210,1765486246746,-151.0,0.00032877,31]
[398269211,1765486246757,-151.0,0.00032877,31]
[398269212,1765486246766,-151.0,0.00032877,31]
[398269213,1765486246777,-151.0,0.00032877,31]
[398269214,1765486246788,-151.0,0.00032877,31]
[398269215,1765486246799,-151.0,0.00032877,31]
[398269216,1765486246809,-151.0,0.00032877,31]
[398269217,1765486246819,-151.0,0.00032877,31]
[398269218,1765486246830,-151.0,0.00032877,31]
[398269219,1765486246840,-151.0,0.00032877,31]
[398269220,1765486246850,-151.0,0.00032877,31]
[398269221,1765486246860,-151.0,0.00032877,31]
[398269222,1765486246870,-151.0,0.00032877,31]
[398269223,1765486246880,-151.0,0.00032877,31]
[398269224,1765486246891,-151.0,0.00032877,31]
[398269225,1765486246901,-275.399789,0.00032877,31]
[398269226,1765486246912,-151.0,0.00032877,31]
[398269227,1765486246922,-151.0,0.00032877,31]
[398269228,1765486246931,-212.293825,0.00032877,31]
[398269229,1765486246941,-151.0,0.00032877,31]
[398269230,1765486246951,-151.0,0.00032877,31]
[398269231,1765486246961,-151.0,0.00032877,31]
[398269232,1765486246971,-155.821304,0.00032877,31]
[398269233,1765486246981,-151.0,0.00032877,31]
[398269234,1765486246991,-151.0,0.00032877,31]
[398269235,1765486247002,-151.0,0.00032877,31]
[398269236,1765486247015,-151.0,0.00032877,31]
[398269237,1765486247025,-151.0,0.00032877,31]
[398269238,1765486247035,-151.0,0.00032877,31]
[398269239,1765486247047,-151.0,0.00032877,31]
[398269240,1765486247057,-151.0,0.00032877,31]
[398269241,1765486247067,-151.0,0.00032877,31]
[398269242,1765486247077,-151.0,0.00032877,31]
[398269243,1765486247088,-151.0,0.00032877,31]
[398269244,1765486247098,-151.0,0.00032877,31]
[398269245,1765486247108,-151.0,0.00032877,31]
[398269246,1765486247118,-151.0,0.00032877,31]
[398269247,1765486247128,-151.0,0.00032877,31]
[398269248,1765486247138,-211.719328,0.00032877,31]
[398269249,1765486247150,-151.0,0.00032877,31]
[398269250,1765486247160,-151.0,0.00032877,31]
[398269251,1765486247171,-211.719328,0.00032877,31]
[398269252,1765486247181,-211.719328,0.00032877,31]
[398269253,1765486247193,-211.719328,0.00032877,31]
[398269254,1765486247204,-152.04553,0.00032877,31]
[398269255,1765486247215,-151.9392,0.00032877,31]
[398269256,1765486247225,-151.0,0.00032877,31]
[398269257,1765486247235,-542.416035,0.00032877,31]
[398269258,1765486247245,-542.416035,0.00032877,31]
[398269259,1765486247255,-542.416035,0.00032877,31]
[398269260,1765486247265,-151.0,0.00032877,31]
[398269261,1765486247275,-542.416035,0.00032877,31]
[398269262,1765486247286,-151.0,0.00032877,31]
[398269263,1765486247296,-151.0,0.00032877,31]
[398269264,1765486247305,-151.0,0.00032877,31]
[398269265,1765486247315,-151.0,0.00032877,31]
[398269266,1765486247325,-151.0,0.00032877,31]
[398269267,1765486247335,-177.64617,0.00032877,31]
[398269268,1765486247345,-151.431798,0.00032877,31]
[398269269,1765486247356,-151.0,0.00032877,31]
[398269270,1765486247366,-152.119379,0.00032877,31]
[398269271,1765486247381,-151.0,0.00032877,31]
[398269272,1765486247392,-151.0,0.00032877,31]
[398269273,1765486247404,-151.0,0.00032877,31]
[398269274,1765486247414,-151.0,0.00032877,31]
[398269275,1765486247424,-151.0,0.00032877,31]
[398269276,1765486247435,-151.0,0.00032877,31]
[398269277,1765486247445,-151.0,0.00032877,31]
[398269278,1765486247454,-151.0,0.00032877,31]
[398269279,1765486247465,-151.0,0.00032877,31]
[398269280,1765486247475,-151.0,0.00032877,31]
[398269281,1765486247486,-151.0,0.00032877,31]
[398269282,1765486247495,-151.0,0.00032877,31]
[398269283,1765486247506,-990.198272,0.00032877,31]
[398269284,1765486247517,-990.198272,0.00032877,31]
[398269285,1765486247527,-990.198272,0.00032877,31]
[398269286,1765486247537,-990.198272,0.00032877,31]
[398269287,1765486247547,-990.198272,0.00032877,31]
[398269288,1765486247557,-990.198272,0.00032877,31]
[398269289,1765486247567,-990.198272,0.00032877,31]
[398269290,1765486247578,-990.198272,0.00032877,31]
[398269291,1765486247589,-151.0,0.00032877,31]
[398269292,1765486247600,-151.0,0.00032877,31]
[398269293,1765486247610,-151.0,0.00032877,31]
[398269294,1765486247621,-151.0,0.00032877,31]
[398269295,1765486247631,-151.0,0.00032877,31]
[398269296,1765486247641,-151.0,0.00032877,31]
[398269297,1765486247653,-151.0,0.00032877,31]
[398269298,1765486247663,-278.658231,0.00032877,31]
[398269299,1765486247673,-248.191577,0.00032877,31]
[398269300,1765486247684,-151.0,0.00032877,31]
[398269301,1765486247694,-151.0,0.00032877,31]
[398269302,1765486247704,-278.658231,0.00032877,31]
[398269303,1765486247715,-151.0,0.00032877,31]
[398269304,1765486247730,-278.658231,0.00032877,31]
[398269305,1765486247741,-151.0,0.00032877,31]
[398269306,1765486247751,-278.658231,0.00032877,31]
[398269307,1765486247761,-278.658231,0.00032877,31]
[398269308,1765486247772,-278.658231,0.00032877,31]
[398269309,1765486247782,-278.658231,0.00032877,31]
[398269310,1765486247793,-151.0,0.00032877,31]
[398269311,1765486247803,-278.658231,0.00032877,31]
[398269312,1765486247813,-151.0,0.00032877,31]
[398269313,1765486247823,-151.0,0.00032877,31]
[398269314,1765486247833,-151.0,0.00032877,31]
[398269315,1765486247844,-155.467458,0.00032877,31]
[398269316,1765486247855,-151.0,0.00032877,31]
[398269317,1765486247865,-151.0,0.00032877,31]
[398269318,1765486247875,-151.0,0.00032877,31]
[398269319,1765486247886,-151.0,0.00032877,31]
[398269320,1765486247897,-151.0,0.00032877,31]
[398269321,1765486247906,-151.0,0.00032877,31]
[398269322,1765486247921,-151.0,0.00032877,31]
[398269323,1765486247931,-151.0,0.00032877,31]
[398269324,1765486247941,-252.771881,0.00032877,31]
[398269325,1765486247953,-153.916011,0.00032877,31]
[398269326,1765486247964,-151.0,0.00032877,31]
[398269327,1765486247975,-262.617952,0.00032877,31]
[398269328,1765486247985,-151.663881,0.00032877,31]
[398269329,1765486247995,-151.0,0.00032877,31]
[398269330,1765486248008,-151.0,0.00032877,31]
[398269331,1765486248018,-151.0,0.00032877,31]
[398269332,1765486248028,-151.0,0.00032877,31]
[398269333,1765486248038,-171.146056,0.00032877,31]
[398269334,1765486248049,-151.0,0.00032877,31]
[398269335,1765486248059,-151.0,0.00032877,31]
[398269336,1765486248070,-151.0,0.00032877,31]
[398269337,1765486248081,-151.0,0.00032877,31]
[398269338,1765486248091,-151.0,0.00032877,31]
[398269339,1765486248101,-151.0,0.00032877,31]
[398269340,1765486248111,-151.0,0.00032877,31]
[398269341,1765486248125,-151.0,0.00032877,31]
[398269342,1765486248135,-151.0,0.00032877,31]
[398269343,1765486248145,-151.0,0.00032877,31]
[398269344,1765486248156,-301.92,0.00032877,2]
[398269345,1765486248166,-150.0,0.00032877,2]
[398269346,1765486248176,-300.0,0.00032877,2]
[398269347,1765486248186,-300.0,0.00032877,2]
[398269348,1765486248196,-300.0,0.00032877,2]
[398269349,1765486248206,-151.0,0.00032877,31]
[398269350,1765486248459,-151.0,0.00032877,31]
[398269351,1765486248469,-192.82308,0.00032877,31]
[398269352,1765486248480,-151.0,0.00032877,31]
[398269353,1765486248490,-173.862967,0.00032877,31]
[398269354,1765486248500,-206.268652,0.00032877,31]
[398269355,1765486248510,-151.0,0.00032877,31]
[398269356,1765486248519,-157.661309,0.00032877,31]
[398269357,1765486248529,-151.0,0.00032877,31]
[398269358,1765486248539,-151.0,0.00032877,31]
[398269359,1765486248550,-229.057414,0.00032877,2]
[398269360,1765486248560,-229.057414,0.00032877,2]
[398269361,1765486248570,-229.057414,0.00032877,2]
[398269362,1765486248580,-229.057414,0.00032877,2]
[398269363,1765486248589,-151.0,0.00032877,31]